lending/lending_fUSD_20260312
["ID","MTS","AMOUNT","RATE_DAILY","PERIOD"]
[408236251,1773285039574,-371.53423539,0.00019899,2]
[408236253,1773285039583,-500.0,0.00019899,2]
[408236255,1773285039592,-507.45956471,0.00019899,2]
[408236257,1773285039601,-500.0,0.00019899,2]
[408236259,1773285039611,-3726.29171914,0.00019899,2]
[408236261,1773285039620,-3726.29171914,0.00019899,2]
[408236263,1773285039629,-3726.29171914,0.00019899,2]
[408236265,1773285039638,-3726.29171914,0.00019899,2]
[408236267,1773285039647,-3726.29171914,0.000199,2]
[408236269,1773285039656,-3726.29171914,0.000199,2]
[408236272,1773285039665,-3726.29171914,0.000199,2]
[408236275,1773285039674,-3726.29171914,0.000199,2]
[408236277,1773285039682,-550.33413122,0.000199,2]
[408236279,1773285039691,-10000.0,0.000199,2]
[408236281,1773285039700,-3726.29171914,0.000199,2]
[408236283,1773285039710,-4802.8498,0.000199,2]
[408236285,1773285039719,-779.56974202,0.000199,2]
[408236287,1773285039728,-239.20463266,0.000199,2]
[408236289,1773285039737,-2527.41396164,0.000199,2]
[408236291,1773285039746,-11205.4084712,0.000199,2]
[408236293,1773285039755,-3975.63866947,0.000199,2]
[408236295,1773285039764,-166.66,0.00019913,2]
[408236297,1773285039773,-150.0,0.00019945,2]
[408236299,1773285039782,-150.0,0.00019945,2]
[408236301,1773285039791,-294.0,0.00019945,2]
[408236303,1773285039800,-500.0,0.00019945,2]
[408236305,1773285039809,-500.0,0.00019945,2]
[408236307,1773285039818,-500.0,0.00019945,2]
[408236309,1773285039827,-3292.0,0.00019964,2]
[408236311,1773285039836,-250.0,0.00019965,2]
[408236312,1773285039845,-163.0,0.00019973,2]
[408236314,1773285039855,-500.0,0.00019973,2]
[408236316,1773285039865,-160.0,0.00019973,2]
[408236318,1773285039874,-502.78663572,0.00019973,2]
[408236321,1773285039884,-388.35661151,0.0001998,2]
[408236322,1773285039892,-151.0,0.0001999,2]
[408236324,1773285039902,-200.04606702,0.0001999,2]
[408236326,1773285039911,-151.0,0.00019997,2]
[408236328,1773285039920,-500.0,0.00019999,2]
[408236331,1773285039930,-500.0,0.00019999,2]
[408236332,1773285039939,-500.0,0.00019999,2]
[408236334,1773285039948,-521.6043228,0.00019999,2]
[408236337,1773285039957,-500.0,0.00019999,2]
[408236339,1773285039967,-500.0,0.00019999,2]
[408236340,1773285039975,-500.0,0.00019999,2]
[408236342,1773285039985,-500.0,0.00019999,2]
[408236344,1773285039994,-601.03543799,0.00019999,2]
[408236346,1773285040003,-368.80956201,0.00019999,2]
[408236348,1773285040012,-500.0,0.00019999,2]
[408236350,1773285040021,-506.16099555,0.00019999,2]
[408236352,1773285040030,-500.0,0.00019999,2]
[408236354,1773285040039,-500.0,0.00019999,2]
[408236356,1773285040048,-500.0,0.00019999,2]
[408236358,1773285040057,-500.0,0.00019999,2]
[408236360,1773285040066,-775.1,0.00019999,2]
[408236362,1773285040075,-775.1,0.00019999,2]
[408236364,1773285040085,-775.1,0.00019999,2]
[408236367,1773285040094,-775.1,0.00019999,2]
[408236369,1773285040103,-775.1,0.00019999,2]
[408236371,1773285040113,-775.1,0.00019999,2]
[408236373,1773285040121,-775.1,0.00019999,2]
[408236375,1773285040133,-775.1,0.00019999,2]
[408236377,1773285040142,-775.1,0.00019999,2]
[408236379,1773285040151,-775.1,0.00019999,2]
[408236381,1773285040160,-775.1,0.00019999,2]
[408236383,1773285040169,-775.1,0.00019999,2]
[408236385,1773285040182,-775.1,0.00019999,2]
[408236387,1773285040191,-775.1,0.00019999,2]
[408236389,1773285040200,-775.1,0.00019999,2]
[408236391,1773285040210,-775.1,0.00019999,2]
[408236393,1773285040219,-775.1,0.00019999,2]
[408236395,1773285040231,-775.1,0.00019999,2]
[408236397,1773285040240,-775.1,0.00019999,2]
[408236399,1773285040249,-775.1,0.00019999,2]
[408236401,1773285040258,-775.1,0.00019999,2]
[408236403,1773285040268,-775.1,0.00019999,2]
[408236405,1773285040278,-775.15177404,0.00019999,2]
[408236408,1773285040287,-253.55964428,0.00019999,2]
[408236410,1773285040296,-500.0,0.00019999,2]
[408236413,1773285040306,-500.0,0.00019999,2]
[408236415,1773285040315,-254.86705709,0.00019999,2]
[408236417,1773285040323,-367.88185299,0.00019999,2]
[408236419,1773285040332,-2253.0,0.0002,2]
[408236421,1773285040341,-2475.0,0.0002,2]
[408236423,1773285040351,-250.0,0.0002,2]
[408236425,1773285040359,-250.0,0.0002,2]
[408236427,1773285040368,-500.0,0.0002,2]
[408236429,1773285040377,-500.0,0.0002,2]
[408236431,1773285040386,-500.0,0.0002,2]
[408236433,1773285040396,-164859.16055086,0.0002,2]
[408236435,1773285040404,-1540.59409951,0.0002,2]
[408236437,1773285040414,-177.34819456,0.0002,2]
[408236439,1773285040423,-1793.32906339,0.0002,2]
[408236441,1773285040432,-370.82,0.0002,2]
[408236443,1773285040441,-2464.68,0.0002,2]
[408236445,1773285040450,-342.5,0.0002,2]
[408236447,1773285040459,-1300.60342301,0.0002,2]
[408236449,1773285040468,-1049.91911155,0.0002,2]
[408236451,1773285040477,-152.0,0.0002,2]
[408236453,1773285040489,-276.759,0.0002,2]
[408236455,1773285040497,-101346.81058518,0.0002,2]
[408236458,1773285040513,-788.45865194,0.0002,2]
[408236461,1773285040531,-1528.31717282,0.0002,2]
[408236463,1773285040541,-4378.99380511,0.0002,2]
[408236465,1773285040552,-3595.2502192,0.0002,2]
[408236478,1773285040656,-475.40060488,0.00019869,2]
[408236481,1773285040674,-285.04799999,0.00019869,2]
[408236485,1773285040699,-239.55139513,0.00019869,2]
[408236487,1773285040709,-152.15730722,0.00019921,2]
[408236489,1773285040718,-781.22325199,0.0002,2]
[408236491,1773285040729,-1058.577,0.0002,2]
[408236677,1773285042706,-4852.20241549,0.0002,2]
[408236684,1773285042761,-743.13489406,0.0002,2]
[408236709,1773285042984,-693479.48129297,0.0002,2]
[408236711,1773285042993,-2034.28033148,0.0002,2]
[408236713,1773285043002,-292495.03067932,0.0002,2]
[408236936,1773285045598,-168.0,0.00019192,2]
[408236937,1773285045609,-805.00923496,0.000199,2]
[408236938,1773285045705,-624.358308,0.000199,2]
[408236939,1773285045764,-570.63245704,0.000199,2]
[408236940,1773285045774,-10227.90283932,0.0002,2]
[408236979,1773285717218,152.12,9.245e-05,2]
[408236980,1773285717419,152.12,0.00010086,2]
[408236981,1773285717594,152.12,0.00010926,2]
[408236982,1773285717773,152.12,0.00011767,2]
[408236983,1773285717979,152.12,0.00012607,2]
[408236984,1773285718187,152.12,0.00013448,2]
[408236985,1773285718393,152.12,0.00014288,2]
[408236987,1773285993126,-152.12,0.00015129,2]
[408236988,1773285993150,-125.89629939,0.00015549,2]
[408236997,1773286231622,-203.25750227,0.00015869,2]
[408236999,1773286231632,-369.28136401,0.00015889,2]
[408237001,1773286231644,-1254.35762499,0.00015889,2]
[408237002,1773286231653,-152.12,0.00015969,2]
[408237003,1773286231663,-193.52237501,0.00016,2]
[408237004,1773286231676,-13.47762499,0.00016,2]
[408237005,1773286231686,-1242.0,0.00016144,2]
[408237006,1773286231695,-300.0,0.00016641,2]
[408237007,1773286231705,-1200.0,0.00016641,2]
[408237008,1773286231715,-5049.05531645,0.00016642,2]
[408237009,1773286231724,-374.7733,0.00016642,2]
[408237010,1773286231734,-253.83865885,0.00016642,2]
[408237011,1773286231744,-300.0,0.00016642,2]
[408237012,1773286231754,-152.12,0.0001681,2]
[408237013,1773286231763,-527.0,0.00017,2]
[408237014,1773286231773,-607.69660592,0.00017104,2]
[408237015,1773286231783,-557.36,0.00017104,2]
[408237016,1773286231794,-600.0,0.00017104,2]
[408237017,1773286231804,-152.12,0.0001765,2]
[408237018,1773286231815,-2000.0,0.0001785,2]
[408237019,1773286231824,-850.0,0.00018175,2]
[408237020,1773286231833,-1545.32,0.00018176,2]
[408237022,1773286231842,-185.01,0.00018263,2]
[408237024,1773286231852,-1680.0,0.00018273,2]
[408237026,1773286231862,-152.12,0.00018491,2]
[408237028,1773286231871,-1478.0261,0.00018556,2]
[408237030,1773286231880,-8017.0684,0.00018556,2]
[408237032,1773286231890,-203.25750227,0.00018559,2]
[408237034,1773286231899,-2468.66606323,0.00018559,2]
[408237036,1773286231908,-3145.09387194,0.00018573,2]
[408237038,1773286231917,-1545.32,0.0001863,2]
[408237040,1773286231926,-1000.0,0.00018645,2]
[408237042,1773286231935,-151.0,0.00018645,2]
[408237044,1773286231944,-151.0,0.00018645,2]
[408237045,1773286231953,-154.4363437,0.00018645,2]
[408237046,1773286231962,-1474.55070196,0.00018646,2]
[408237047,1773286231976,-1278.13544129,0.00018646,2]
[408237048,1773286231985,-89096.0173,0.00018656,2]
[408237049,1773286231994,-500.0,0.00018673,2]
[408237050,1773286232004,-168.0,0.00018838,2]
[408237051,1773286232013,-3774.65743579,0.000189,2]
[408237052,1773286232022,-168.0,0.00018939,2]
[408237053,1773286232032,-3090.66,0.00018959,2]
[408237054,1773286232041,-502.78663572,0.00018973,2]
[408237055,1773286232050,-503.26256351,0.00018973,2]
[408237056,1773286232059,-501.65818197,0.00018973,2]
[408237057,1773286232068,-286.42096768,0.00018973,2]
[408237058,1773286232077,-500.87363076,0.00018973,2]
[408237059,1773286232087,-316.27144279,0.00018973,2]
[408237060,1773286232110,-186.26012149,0.00018973,2]
[408237061,1773286232120,-500.46927556,0.00018973,2]
[408237062,1773286232129,-267.2125161,0.00018973,2]
[408237063,1773286232140,-232.7874839,0.00018973,2]
[408237064,1773286232149,-525.21933758,0.00018973,2]
[408237065,1773286232160,-112.67709836,0.00018973,2]
[408237066,1773286232170,-500.0,0.00018973,2]
[408237067,1773286232180,-502.19665018,0.00018973,2]
[408237068,1773286232189,-240.48797603,0.00018973,2]
[408237069,1773286232198,-500.0,0.00018973,2]
[408237070,1773286232207,-500.51227958,0.00018973,2]
[408237071,1773286232217,-228.26392345,0.00018973,2]
[408237072,1773286237709,-271.73607655,0.00018973,2]
[408237073,1773286237719,-289.66,0.00018999,2]
[408237074,1773286237730,-500.0,0.00018999,2]
[408237075,1773286237739,-500.0,0.00018999,2]
[408237076,1773286237748,-500.0,0.00018999,2]
[408237077,1773286237757,-500.0,0.00018999,2]
[408237078,1773286237766,-500.0,0.00018999,2]
[408237079,1773286237776,-500.0,0.00018999,2]
[408237080,1773286237785,-319.66891224,0.00018999,2]
[408237081,1773286237805,-180.33108776,0.00018999,2]
[408237082,1773286237816,-500.0,0.00018999,2]
[408237083,1773286237826,-500.0,0.00018999,2]
[408237084,1773286237836,-500.0,0.00018999,2]
[408237085,1773286237845,-500.0,0.00018999,2]
[408237086,1773286237854,-500.0,0.00018999,2]
[408237087,1773286237863,-500.0,0.00018999,2]
[408237088,1773286237872,-228.03188069,0.00018999,2]
[408237089,1773286237881,-500.0,0.00018999,2]
[408237090,1773286237890,-500.0,0.00018999,2]
[408237091,1773286237900,-500.0,0.00018999,2]
[408237092,1773286237909,-500.0,0.00018999,2]
[408237093,1773286237918,-500.0,0.00018999,2]
[408237094,1773286237927,-500.0,0.00018999,2]
[408237095,1773286237936,-500.0,0.00018999,2]
[408237096,1773286237946,-500.0,0.00018999,2]
[408237097,1773286237955,-500.0,0.00018999,2]
[408237098,1773286237965,-500.0,0.00018999,2]
[408237099,1773286237974,-500.0,0.00018999,2]
[408237101,1773286237984,-500.0,0.00018999,2]
[408237103,1773286237993,-5025.9050725,0.00019,2]
[408237105,1773286238002,-5000.0,0.00019,2]
[408237106,1773286238012,-5000.0,0.00019,2]
[408237107,1773286238021,-5000.0,0.00019,2]
[408237108,1773286238031,-3774.65743578,0.00019011,2]
[408237110,1773286238040,-1545.32,0.00019085,2]
[408237111,1773286238049,-3774.65743578,0.00019122,2]
[408237112,1773286238058,-223.15,0.00019125,2]
[408237113,1773286238070,-1000.0,0.00019178,2]
[408237114,1773286238079,-168.0,0.00019183,2]
[408237115,1773286238089,-168.0,0.00019203,2]
[408237116,1773286238098,-168.0,0.00019217,2]
[408237117,1773286238107,-218.67586493,0.00019221,2]
[408237118,1773286238117,-3774.65743578,0.00019233,2]
[408237119,1773286238126,-260.0,0.00019247,2]
[408237120,1773286238135,-168.0,0.00019258,2]
[408237121,1773286238145,-289.66,0.00019273,2]
[408237123,1773286238154,-168.0,0.00019305,2]
[408237125,1773286238163,-1000.0,0.00019322,2]
[408237127,1773286238172,-3774.65743578,0.00019344,2]
[408237129,1773286238181,-168.0,0.00019366,2]
[408237131,1773286238190,-1347.0,0.00019426,2]
[408237132,1773286238200,-1000.0,0.00019452,2]
[408237133,1773286238209,-3774.65743578,0.00019456,2]
[408237134,1773286238217,-2000.0,0.000195,2]
[408237135,1773286238226,-1000.0,0.00019521,2]
[408237136,1773286238235,-1000.0,0.00019521,2]
[408237137,1773286238244,-504.05420061,0.00019521,2]
[408237138,1773286238253,-1000.79155227,0.00019521,2]
[408237139,1773286238262,-1545.32,0.00019539,2]
[408237140,1773286238271,-289.66,0.00019547,2]
[408237141,1773286238280,-3774.65743578,0.00019567,2]
[408237142,1773286238289,-744.0,0.00019663,2]
[408237143,1773286238298,-501.72225652,0.00019673,2]
[408237144,1773286238308,-500.0,0.00019673,2]
[408237145,1773286238320,-501.23231111,0.00019673,2]
[408237146,1773286238329,-501.00533908,0.00019673,2]
[408237147,1773286238339,-500.7237999,0.00019673,2]
[408237148,1773286238348,-500.40770532,0.00019673,2]
[408237149,1773286238359,-559.37645425,0.00019673,2]
[408237150,1773286238371,-501.8050493,0.00019673,2]
[408237151,1773286238380,-502.30166976,0.00019673,2]
[408237152,1773286238390,-505.57266482,0.00019673,2]
[408237153,1773286238400,-161.57045778,0.00019673,2]
[408237154,1773286238409,-336.62897226,0.00019673,2]
[408237155,1773286238418,-3774.65743578,0.00019678,2]
[408237156,1773286238427,-150.0,0.00019726,2]
[408237157,1773286238623,-500.0,0.00019726,2]
[408237158,1773286238632,-150.0,0.00019726,2]
[408237159,1773286238642,-150.0,0.00019726,2]
[408237160,1773286238651,-150.0,0.00019726,2]
[408237161,1773286238660,-153.19999462,0.00019726,2]
[408237162,1773286238670,-150.0,0.00019726,2]
[408237163,1773286238679,-208.86314641,0.00019726,2]
[408237164,1773286238690,-500.0,0.00019726,2]
[408237165,1773286238699,-150.0,0.00019726,2]
[408237166,1773286238708,-500.0,0.00019726,2]
[408237167,1773286238717,-150.0,0.00019726,2]
[408237168,1773286238726,-500.0,0.00019726,2]
[408237169,1773286238735,-500.0,0.00019726,2]
[408237170,1773286238746,-150.0,0.00019726,2]
[408237171,1773286238757,-500.0,0.00019726,2]
[408237172,1773286238768,-500.0,0.00019726,2]
[408237173,1773286238777,-150.0,0.00019726,2]
[408237174,1773286238786,-150.0,0.00019726,2]
[408237175,1773286238797,-150.0,0.00019726,2]
[408237176,1773286238805,-158.29035899,0.00019726,2]
[408237177,1773286238814,-500.0,0.00019726,2]
[408237178,1773286238823,-150.0,0.00019726,2]
[408237179,1773286238833,-150.0,0.00019726,2]
[408237180,1773286238842,-500.0,0.00019726,2]
[408237181,1773286238851,-1000.0,0.00019726,2]
[408237182,1773286238860,-150.0,0.00019773,2]
[408237183,1773286238870,-2569.21719211,0.00019773,2]
[408237184,1773286238879,-2000.0,0.00019779,2]
[408237185,1773286238889,-150.0,0.00019781,2]
[408237186,1773286238898,-583.49211443,0.00019781,2]
[408237187,1773286238907,-150.0,0.00019781,2]
[408237188,1773286238916,-150.0,0.00019781,2]
[408237189,1773286238925,-150.0,0.00019781,2]
[408237190,1773286238934,-150.0,0.00019781,2]
[408237191,1773286238943,-500.0,0.00019781,2]
[408237192,1773286238953,-200.0,0.00019781,2]
[408237193,1773286238962,-500.0,0.00019781,2]
[408237194,1773286238971,-500.0,0.00019781,2]
[408237195,1773286238980,-500.0,0.00019781,2]
[408237196,1773286238989,-150.0,0.00019781,2]
[408237197,1773286238998,-500.0,0.00019781,2]
[408237198,1773286239009,-500.0,0.00019781,2]
[408237199,1773286239017,-150.55280334,0.00019781,2]
[408237200,1773286239027,-150.0,0.00019781,2]
[408237201,1773286239036,-150.0,0.00019781,2]
[408237202,1773286239045,-500.0,0.00019781,2]
[408237203,1773286239054,-150.0,0.00019781,2]
[408237204,1773286239063,-500.0,0.00019781,2]
[408237205,1773286239072,-3774.65743578,0.00019789,2]
[408237206,1773286239081,-1169.43194,0.000198,2]
[408237207,1773286239090,-1169.43194,0.000198,2]
[408237208,1773286239099,-6791.2710371,0.000198,2]
[408237209,1773286239108,-775.1,0.0001981,2]
[408237210,1773286239118,-6791.27103709,0.00019811,2]
[408237211,1773286239127,-168.0,0.00019813,2]
[408237212,1773286239136,-289.66,0.00019821,2]
[408237213,1773286239145,-6791.27103709,0.00019822,2]
[408237214,1773286239154,-744.0,0.00019826,2]
[408237215,1773286239163,-6791.27103709,0.00019833,2]
[408237216,1773286239173,-150.0,0.00019836,2]
[408237217,1773286239182,-150.0,0.00019836,2]
[408237218,1773286239191,-500.0,0.00019836,2]
[408237219,1773286239200,-500.0,0.00019836,2]
[408237220,1773286239209,-500.0,0.00019836,2]
[408237221,1773286239218,-300.0,0.00019836,2]
[408237222,1773286239228,-251.99957865,0.00019836,2]
[408237223,1773286239237,-500.0,0.00019836,2]
[408237224,1773286239246,-500.0,0.00019836,2]
[408237225,1773286239255,-150.0,0.00019836,2]
[408237226,1773286239266,-150.0,0.00019836,2]
[408237227,1773286239275,-316.59135626,0.00019836,2]
[408237228,1773286239284,-200.0,0.00019836,2]
[408237229,1773286239293,-500.0,0.00019836,2]
[408237230,1773286239302,-6791.27103709,0.00019844,2]
[408237231,1773286239310,-6791.27103709,0.00019856,2]
[408237232,1773286239319,-200.0,0.0001986,2]
[408237233,1773286239328,-6791.27103709,0.00019867,2]
[408237234,1773286239339,-2709.404,0.00019867,2]
[408237235,1773286239350,-169.544,0.00019867,2]
[408237236,1773286239359,-161.87579559,0.00019872,2]
[408237237,1773286239368,-164.49288389,0.00019873,2]
[408237238,1773286239378,-194.42908711,0.00019873,2]
[408237239,1773286239386,-500.0,0.00019873,2]
[408237240,1773286239395,-500.0,0.00019873,2]
[408237241,1773286239405,-500.93071365,0.00019873,2]
[408237242,1773286239414,-210.27340543,0.00019873,2]
[408237243,1773286239425,-501.08281309,0.00019873,2]
[408237244,1773286239434,-500.0,0.00019873,2]
[408237245,1773286239443,-500.0,0.00019873,2]
[408237246,1773286239452,-500.12159821,0.00019873,2]
[408237247,1773286239461,-500.98864004,0.00019873,2]
[408237248,1773286239470,-500.0,0.00019873,2]
[408237249,1773286239479,-500.84992716,0.00019873,2]
[408237250,1773286239488,-500.57549649,0.00019873,2]
[408237251,1773286239497,-500.96819859,0.00019873,2]
[408237252,1773286239507,-500.0,0.00019873,2]
[408237253,1773286239515,-500.94993668,0.00019873,2]
[408237254,1773286239527,-500.64651238,0.00019873,2]
[408237255,1773286239543,-500.96059113,0.00019873,2]
[408237256,1773286239556,-164.75042559,0.00019873,2]
[408237257,1773286239566,-500.0,0.00019873,2]
[408237258,1773286239577,-500.59924271,0.00019873,2]
[408237259,1773286239587,-501.85056742,0.00019873,2]
[408237260,1773286239599,-158.95422512,0.00019873,2]
[408237261,1773286239611,-500.26311273,0.00019873,2]
[408237262,1773286239622,-501.00583529,0.00019873,2]
[408237263,1773286239632,-501.77207058,0.00019873,2]
[408237264,1773286239641,-502.04959379,0.00019873,2]
[408237265,1773286239650,-500.92119116,0.00019873,2]
[408237266,1773286239659,-605.9979616,0.00019873,2]
[408237268,1773286239668,-500.31279021,0.00019873,2]
[408237269,1773286239679,-501.33985564,0.00019873,2]
[408237270,1773286239688,-500.93111298,0.00019873,2]
[408237271,1773286239697,-6791.27103709,0.00019878,2]
[408237272,1773286239708,-6791.27103709,0.00019889,2]
[408237273,1773286239717,-150.0,0.0001989,2]
[408237274,1773286239727,-150.0,0.0001989,2]
[408237275,1773286239738,-500.0,0.0001989,2]
[408237276,1773286239749,-500.0,0.0001989,2]
[408237277,1773286239758,-500.0,0.0001989,2]
[408237278,1773286239768,-500.0,0.0001989,2]
[408237279,1773286239777,-152.4609476,0.0001989,2]
[408237280,1773286239786,-210.28483166,0.0001989,2]
[408237281,1773286239797,-500.0,0.0001989,2]
[408237282,1773286239806,-500.0,0.00019899,2]
[408237284,1773286239815,-514.94724986,0.00019899,2]
[408237285,1773286239826,-514.33858661,0.00019899,2]
[408237286,1773286239835,-500.0,0.00019899,2]
[408237287,1773286239844,-500.0,0.00019899,2]
[408237288,1773286239853,-3730.5215,0.000199,2]
[408237289,1773286239862,-10000.0,0.000199,2]
[408237290,1773286239872,-550.33413122,0.000199,2]
[408237291,1773286239881,-4802.8498,0.000199,2]
[408237292,1773286239891,-6791.27103709,0.000199,2]
[408237293,1773286239901,-389.78487101,0.000199,2]
[408237294,1773286239911,-11205.4084712,0.000199,2]
[408237295,1773286239920,-99999.999,0.000199,2]
[408237296,1773286239929,-358.80694901,0.000199,2]
[408237297,1773286239939,-3774.65743578,0.000199,2]
[408237298,1773286239948,-3975.63866947,0.000199,2]
[408237299,1773286239957,-1271.44,0.00019902,2]
[408237300,1773286239966,-250.0,0.00019913,2]
[408237301,1773286239975,-200.0,0.00019945,2]
[408237302,1773286239985,-150.0,0.00019945,2]
[408237303,1773286239995,-150.0,0.00019945,2]
[408237304,1773286240004,-500.0,0.00019945,2]
[408237305,1773286240013,-294.0,0.00019945,2]
[408237306,1773286240023,-500.0,0.00019945,2]
[408237307,1773286240032,-500.0,0.00019945,2]
[408237308,1773286240041,-200.0,0.00019964,2]
[408237309,1773286240051,-323.0,0.00019973,2]
[408237310,1773286240060,-200.04606702,0.0001999,2]
[408237311,1773286240069,-1545.32,0.00019993,2]
[408237312,1773286240079,-151.0,0.00019997,2]
[408237313,1773286240088,-1004.31482777,0.00019999,2]
[408237314,1773286240097,-500.0,0.00019999,2]
[408237315,1773286240106,-500.0,0.00019999,2]
[408237316,1773286240115,-500.0,0.00019999,2]
[408237317,1773286240124,-500.0,0.00019999,2]
[408237318,1773286240133,-521.6043228,0.00019999,2]
[408237319,1773286240143,-368.80956201,0.00019999,2]
[408237320,1773286240151,-500.0,0.00019999,2]
[408237321,1773286240162,-500.0,0.00019999,2]
[408237322,1773286240171,-500.0,0.00019999,2]
[408237323,1773286240180,-500.0,0.00019999,2]
[408237324,1773286240189,-500.0,0.00019999,2]
[408237325,1773286240199,-601.03543799,0.00019999,2]
[408237326,1773286240208,-500.0,0.00019999,2]
[408237327,1773286240223,-506.16099555,0.00019999,2]
[408237328,1773286240243,-371.53423539,0.00019999,2]
[408237329,1773286240264,-500.0,0.00019999,2]
[408237330,1773286240275,-500.0,0.00019999,2]
[408237331,1773286240285,-507.45956471,0.00019999,2]
[408237332,1773286240299,-500.0,0.00019999,2]
[408237333,1773286240314,-509.61725912,0.00019999,2]
[408237334,1773286240325,-516.68643807,0.00019999,2]
[408237335,1773286240336,-500.0,0.00019999,2]
[408237336,1773286240345,-500.0,0.00019999,2]
[408237337,1773286240354,-500.0,0.00019999,2]
[408237338,1773286240364,-502.5510018,0.00019999,2]
[408237339,1773286240373,-775.1,0.00019999,2]
[408237340,1773286240383,-775.1,0.00019999,2]
[408237341,1773286240393,-775.1,0.00019999,2]
[408237342,1773286240403,-775.1,0.00019999,2]
[408237343,1773286240414,-775.1,0.00019999,2]
[408237345,1773286240423,-775.1,0.00019999,2]
[408237346,1773286240433,-775.1,0.00019999,2]
[408237347,1773286240443,-775.1,0.00019999,2]
[408237348,1773286240453,-775.1,0.00019999,2]
[408237349,1773286240462,-775.1,0.00019999,2]
[408237350,1773286240472,-775.1,0.00019999,2]
[408237351,1773286240481,-775.1,0.00019999,2]
[408237352,1773286240490,-775.1,0.00019999,2]
[408237353,1773286240500,-775.1,0.00019999,2]
[408237354,1773286240510,-775.1,0.00019999,2]
[408237355,1773286240519,-775.1,0.00019999,2]
[408237356,1773286240533,-775.1,0.00019999,2]
[408237357,1773286240542,-775.1,0.00019999,2]
[408237358,1773286240552,-775.1,0.00019999,2]
[408237359,1773286240561,-775.1,0.00019999,2]
[408237360,1773286240572,-775.1,0.00019999,2]
[408237361,1773286240582,-775.1,0.00019999,2]
[408237362,1773286240595,-775.15177404,0.00019999,2]
[408237363,1773286240607,-540.08213026,0.00019999,2]
[408237364,1773286240619,-338.27540864,0.00019999,2]
[408237365,1773286240631,-500.0,0.00019999,2]
[408237366,1773286240640,-500.0,0.00019999,2]
[408237367,1773286240653,-168.15391418,0.00019999,2]
[408237368,1773286240663,-500.0,0.00019999,2]
[408237369,1773286240673,-2924.0,0.0002,2]
[408237370,1773286240683,-2146.0,0.0002,2]
[408237371,1773286240705,-200.0,0.0002,2]
[408237372,1773286240726,-250.0,0.0002,2]
[408237373,1773286240739,-250.0,0.0002,2]
[408237374,1773286240748,-500.0,0.0002,2]
[408237375,1773286240759,-500.0,0.0002,2]
[408237376,1773286240772,-500.0,0.0002,2]
[408237377,1773286240781,-143041.06573945,0.0002,2]
[408237378,1773286240803,-23752.2917277,0.0002,2]
[408237379,1773286240817,-2426.4876483,0.0002,2]
[408237380,1773286240874,-544.42640669,0.0002,2]
[408237381,1773286241039,-98505.90875847,0.0002,2]
[408237382,1773286241053,-425.63,0.0002,2]
[408237383,1773286241066,-629.2185119,0.0002,2]
[408237384,1773286241077,-1587.711,0.0002,2]
[408237385,1773286241090,-922.18333418,0.0002,2]
[408237386,1773286241102,-1639.81824446,0.0002,2]
[408237387,1773286241119,-500.0,0.0002,2]
[408237388,1773286241132,-306.10710901,0.0002,2]
[408237389,1773286241153,-6061.57519651,0.0002,2]
[408237390,1773286241166,-6465.33110218,0.0002,2]
[408237391,1773286241186,-420.86114321,0.0002,2]
[408237392,1773286241201,-3230.74116892,0.0002,2]